{"text_format":"1","workbook":"xlsx","n_sheets":4,"sheets":["Voorblad","Invulscherm","Module2","Module1"],"not_rendered":{"charts":0,"images":2,"macros":1,"external_links":0,"defined_names":1,"comments":0,"pivot_tables":0},"unopened":[{"sheet":"Module2","index":2,"reason":"part_missing"},{"sheet":"Module1","index":3,"reason":"part_missing"}],"bounds":{"document_bytes":16777216,"sheet_cells":100000,"rows_first":2000,"rows_last":500,"rows_between":2000,"halvings":0,"cell_chars":16384,"cell_head_chars":4096},"cells_cut":0,"cells_raw":0,"read":"whole","date_system":"1900"}

{"sheet":"Voorblad","index":0,"n_rows":29,"n_cols":9,"rows_kept":29,"cut":false,"hidden":false,"merged":[]}
[]
[]
[]
[]
[]
[]
[]
[]
[]
[]
[]
[null,"Sponsored by PV-Hoofddorp Hoorn",null,null,null,null,null,null,"Van iedereen, voor iedereen"]
[null,"ARCADIS Tourspel editie 2014"]
[]
[]
[null,"Korte instructie:"]
[null,"1.","Ga naar het Invulscherm, vul hier alle namen en tijden in;"]
[null,"2.","Je kunt hierbij gebruik maken van het hulpveld km/uur;"]
[null,"3.","Bestand uiterlijk donderdag 3 juli 2014 mailen naar Tourdirectie,"]
[null,null,"(bestandsnaam=usernaam+invulsheet_tourspel.xls)."]
[null,"4.","Deelnamebedrag betalen voor 5 juli 2014 bij Tourdirectie"]
[null,null,"LET OP: teamkorting bij gezamenlijk inleveren!!"]
[]
[null,"SUCCES!!"]
[]
[]
[]
[null,"N.B. Mail naar:",null,"tourspel@arcadis.nl"]
[null,"Niet naar persoonlijke mailadressen i.v.m. vakanties!!!"]

{"sheet":"Invulscherm","index":1,"n_rows":60,"n_cols":22,"rows_kept":60,"cut":false,"hidden":false,"merged":[[42,6,42,10],[18,12,18,15],[14,4,14,8],[15,4,15,8],[16,4,16,8],[16,12,16,15],[17,12,17,15]]}
[]
[]
[]
[]
[null,null,null,null,null,null,null,null,null,null,null,null,null,null,null,null,null,null,null,"ALLES INGEVULD:"]
[null,null,null,null,null,null,null,null,null,null,null,null,null,null,null,null,null,null,null,{"$f":"AND(T15:T17,T21:T41)","v":false},{"$f":"IF(T6,\"\",U8&\" / \"&U15&\" / \"&U16&\" / \"&U17&\" / \"&U13)","v":"Niet alle tijden ingevuld / Coureursnaam: niet ingevuld / Eigen naam: niet ingevuld / Ploegnaam: niet ingevuld / "}]
[null,null,null,null,null,null,null,null,null,null,null,null,null,null,null,null,null,null,null,"Tijden"]
[null,null,null,null,null,null,null,null,null,null,null,null,null,null,null,null,null,null,null,{"$f":"AND(T21:T41)","v":false},{"$f":"IF(T8,\"\",C8&\"Niet alle tijden ingevuld\")","v":"Niet alle tijden ingevuld"}]
[null,null,null,null,null,null,null,null,null,null,null,null,null,null,null,null,null,null,null,"naam","invulsheet_tourspel.xls"]
[]
[null,null,"N.B. Mail naar tourspel@arcadis.nl!!",null,null,null,null,null,null,null,null,null,null,null,null,null,null,null,null,{"$f":"U24=U9","v":false}]
[null,null,"INSCHRIJFFORMULIER",null,null,null,null,null,null,null,"Sponsored by PV-Hoofddorp Hoorn"]
[null,null,"ARCADIS Tourspel editie 2014"]
[]
[null,null,"Coureursnaam:",null,null,null,null,null,null,null,null,null,null,null,null,null,null,null,null,{"$f":"NOT(ISBLANK(E15))","v":false},{"$f":"IF(T15,\"\",C15&\" niet ingevuld\")","v":"Coureursnaam: niet ingevuld"}]
[null,null,"Eigen naam:",null,null,null,null,null,null,null,null,null,null,null,null,null,null,null,null,{"$f":"NOT(ISBLANK(E16))","v":false},{"$f":"IF(T16,\"\",C16&\" niet ingevuld\")","v":"Eigen naam: niet ingevuld"}]
[null,null,"Ploegnaam:",null,null,null,null,null,null,null,"Van iedereen, voor iedereen",null,null,null,null,null,null,null,null,{"$f":"NOT(ISBLANK(E17))","v":false},{"$f":"IF(T17,\"\",C17&\" niet ingevuld\")","v":"Ploegnaam: niet ingevuld"}]
[]
[null,null,"Datum","Etappe","Bijz.","Afstand",null,"Uw tijd",null,null,"Route",null,"Omreken-hulptabel"]
[null,null,null,null,null,"in km","u","m","s",null,"Start > Finish",null,"km/u","u","m","s"]
[null,null,"2014-07-05","Et1",null,190.5,null,null,null,null,"Leeds > Harrogate",null,null,{"$f":"IF(ISBLANK(M21),0,(HOUR($Q21)))","v":0},{"$f":"IF(ISBLANK(M21),0,(MINUTE($Q21)))","v":0},{"$f":"IF(ISBLANK(M21),0,(SECOND($Q21)))","v":0},{"$f":"IF(M21=0,\"\",(F21/(M21*24)))","v":""},null,null,{"$f":"NOT((G21/24+H21/60/24+I21/3600/24)=0)","v":false}]
[null,null,"2014-07-06","Et2","m",201,null,null,null,null,"York > Sheffield",null,null,{"$f":"IF(ISBLANK(M22),0,(HOUR($Q22)))","v":0},{"$f":"IF(ISBLANK(M22),0,(MINUTE($Q22)))","v":0},{"$f":"IF(ISBLANK(M22),0,(SECOND($Q22)))","v":0},{"$f":"IF(M22=0,\"\",(F22/(M22*24)))","v":""},null,null,{"$f":"NOT((G22/24+H22/60/24+I22/3600/24)=0)","v":false},{"$f":"CELL(\"filename\",V35)","v":"C:\\tour\\2014\\[invulsheet_tourspel 2014.xlsm]Invulscherm"},{"$f":"SEARCH(\"[\",U22)","v":14}]
[null,null,"2014-07-07","Et3",null,155,null,null,null,null,"Cambridge > Londres",null,null,0,0,0,{"$f":"IF(M23=0,\"\",(F23/(M23*24)))","v":""},null,null,false,{"$f":"MID(U22,1,V22-2)","v":"C:\\tour\\2014"}]
[null,null,"2014-07-08","Et4",null,163.5,null,null,null,null,"Le Touquet-Paris-Plage > Lille Métropole",null,null,0,0,0,"",null,null,false,{"$f":"MID(U22,(SEARCH(\"[\",U22))+1,(SEARCH(\"]\",U22))-(SEARCH(\"[\",U22))-1)","v":"invulsheet_tourspel 2014.xlsm"}]
[null,null,"2014-07-09","Et5",null,155.5,null,null,null,null,"Ypres > Arenberg Porte du Hainaut",null,null,0,0,0,"",null,null,false]
[null,null,"2014-07-10","Et6",null,194,null,null,null,null,"Arras > Reims",null,null,0,0,0,"",null,null,false]
[null,null,"2014-07-11","Et7",null,234.5,null,null,null,null,"Épernay > Nancy",null,null,0,0,0,"",null,null,false]
[null,null,"2014-07-12","Et8","m",161,null,null,null,null,"Tomblaine > Gérardmer La Mauselaine",null,null,0,0,0,"",null,null,false]
[null,null,"2014-07-13","Et9","m",170,null,null,null,null,"Gérardmer > Mulhouse",null,null,0,0,0,"",null,null,false]
[null,null,"2014-07-14","Et10","b",161.5,null,null,null,null,"Mulhouse > La Planche des Belles Filles",null,null,0,0,0,"",null,null,false]
[null,null,"2014-07-16","Et11",null,187.5,null,null,null,null,"Besançon > Oyonnax",null,null,0,0,0,"",null,null,false]
[null,null,"2014-07-17","Et12","m",185.5,null,null,null,null,"Bourg-en-Bresse > Saint-Étienne",null,null,0,0,0,"",null,null,false]
[null,null,"2014-07-18","Et13","b",197.5,null,null,null,null,"Saint-Étienne > Chamrousse",null,null,0,0,0,"",null,null,false]
[null,null,"2014-07-19","Et14","b",177,null,null,null,null,"Grenoble > Risoul",null,null,0,0,0,"",null,null,false]
[null,null,"2014-07-20","Et15",null,222,null,null,null,null,"Tallard > Nîmes",null,null,0,0,0,"",null,null,false]
[null,null,"2014-07-22","Et16","b",237.5,null,null,null,null,"Carcassonne > Bagnères-de-Luchon",null,null,0,0,0,"",null,null,false]
[null,null,"2014-07-23","Et17","b",124.5,null,null,null,null,"Saint-Gaudens > Saint-Lary Pla d’Adet",null,null,0,0,0,"",null,null,false]
[null,null,"2014-07-24","Et18","b",145.5,null,null,null,null,"Pau > Hautacam",null,null,0,0,0,"",null,null,false]
[null,null,"2014-07-25","Et19",null,208.5,null,null,null,null,"Maubourguet Pays du Val d’Adour > Bergerac",null,null,0,0,0,"",null,null,false]
[null,null,"2014-07-26","Et20","t",54,null,null,null,null,"Bergerac > Périgueux",null,null,0,0,0,"",null,null,false]
[null,null,"2014-07-27","Et21",null,137.5,null,null,null,null,"Évry > Paris Champs-Élysées",null,null,0,0,0,"",null,null,false]
[]
[null,null,"Voor meer informatie over de etappes:",null,null,null,"http://www.letour.fr/le-tour/2014/us/"]
[]
[]
[null,null,"Verklaring kolom bijzonderheden (bijz):"]
[null,null,null,"t","individuele tijdrit",null,null,null,null,null,"Uw tijd invullen in uren (u), minuten (m)"]
[null,null,null,"pt","ploegentijdrit",null,null,null,null,null,"en seconden"]
[null,null,null,"b","etappe met belangrijke bergen"]
[null,null,null,"m","middelgebergte / heuvelachtig"]
[]
[]
[]
[null,null,"INSCHRIJVING:",null,"€",25,"Teaminschrijving (4 coureurs)"]
[null,null,null,null,"€",7.5,"Individuele inschrijving (PV-lid)"]
[null,null,null,null,"€",10,"Individuele inschrijving (niet PV-lid)"]
[null,null,"Gegevens worden verwerkt indien inschrijfbedrag is voldaan."]
[null,null,"LAATSTE INLEVERDATUM: donderdag 3 juli 2014"]
[null,null,"Ingevuld formulier (uw naam.xls) e-mailen naar de Tourdirectie: tourspel@arcadis.nl"]
[null,null,"Alleen dan wordt formulier verwerkt (dus niet naar andere mailadressen)"]